bitfinex-derivatives/quotes_SOLF0:USTF0_20250914
["timestamp","ask_amount","ask_price","bid_price","bid_amount"]
[1757886565650,1.08292648,243.89,243.84,6.81]
[1757886566152,6.85,243.88,243.84,6.81]
[1757886566746,1.08292648,243.9,243.84,6.81]
[1757886567253,7.93292648,243.9,243.84,6.81]
[1757886567554,6.85,243.9,243.84,6.81]
[1757886567856,7.93292648,243.9,243.84,6.81]
[1757886568151,1.08292648,243.93,243.84,6.81]
[1757886568356,6.85,243.96,243.84,7.89292648]
[1757886568757,6.85,243.96,243.85,6.81]
[1757886570851,1.08292648,243.97,243.85,6.81]
[1757886571056,1.08292648,244.03,243.9,1.08292648]
[1757886571257,6.85,244.04,243.94,6.81]
[1757886571558,95.21168311,244.06,243.94,6.81]
[1757886572758,1.08292648,244.06,243.94,6.81]
[1757886573160,6.85,244.08,243.97,6.81]
[1757886573560,1.08292648,244.09,243.97,6.81]
[1757886573859,7.93292648,244.12,244.0,6.81]
[1757886574760,6.85,244.12,244.0,6.81]
[1757886574960,7.93292648,244.12,244.0,6.81]
[1757886576257,6.85,244.23,244.1,6.81]
[1757886576457,7.93292648,244.23,244.13,6.81]
[1757886576858,6.85,244.27,244.13,6.81]
[1757886577056,1.08292648,244.24,244.13,6.81]
[1757886577261,6.85,244.22,244.13,6.81]
[1757886577456,1.08292648,244.18,244.12,6.81]
[1757886577765,1.08292648,244.15,244.07,6.81]
[1757886578163,1.08292648,244.12,244.07,6.81]
[1757886578365,7.93292648,244.12,244.07,6.81]
[1757886578762,6.85,244.12,244.07,6.81]
[1757886578963,1.08292648,244.11,244.07,6.81]
[1757886579161,1.08292648,244.11,244.03,12.43608589]
[1757886580060,4.57820896,244.33,244.03,12.43608589]
[1757886580061,1.08292648,244.08,244.03,12.43608589]
[1757886580258,1.08292648,244.08,244.0,6.81]
[1757886580663,6.85,244.11,244.0,6.81]
[1757886580857,1.08292648,244.1,244.0,6.81]
[1757886581961,6.87,244.09,244.0,6.81]
[1757886582163,1.08292648,244.08,244.0,6.81]
[1757886582765,6.87,244.09,244.0,6.81]
[1757886582959,6.87,244.07,243.96,6.48]
[1757886594078,6.87,244.05,243.91,6.48]
[1757886594479,17.11,244.05,243.91,6.48]
[1757886596371,6.87,244.05,243.91,6.48]
[1757886596572,6.64,244.03,243.91,6.48]
[1757886597677,9.62,244.04,243.91,6.48]
[1757886597880,6.64,244.01,243.91,6.48]
[1757886601886,6.64,243.97,243.83,6.91]
[1757886603283,48.96,243.96,243.83,6.91]
[1757886603483,6.64,243.95,243.83,6.91]
[1757886605382,91.92,243.94,243.83,6.91]
[1757886605584,6.64,243.93,243.83,6.91]
[1757886605985,6.64,243.98,243.83,6.91]
[1757886606184,12.0,244.01,243.85,6.91]
[1757886606380,115.7,244.01,243.85,6.91]
[1757886606586,6.64,244.0,243.85,6.91]
[1757886607683,110.34,244.0,243.85,6.91]
[1757886607881,6.64,244.0,243.85,6.91]
[1757886608092,110.34,244.0,243.85,6.91]
[1757886611294,103.68,243.99,243.85,6.91]
[1757886611693,103.68,243.98,243.85,6.91]
[1757886612894,6.74,243.97,243.85,6.91]
[1757886617996,103.66,243.96,243.85,6.91]
[1757886621395,6.74,243.95,243.85,6.91]
[1757886632614,6.74,243.95,243.85,10.30464661]
[1757886633707,6.74,243.95,243.86,7.11]
[1757886635408,6.74,243.95,243.86,10.50464661]
[1757886639119,6.55,243.95,243.86,10.50464661]
[1757886639419,6.55,243.95,243.87,3.39464661]
[1757886640619,6.55,243.95,243.86,10.50464661]
[1757886640816,52.4523672,243.96,243.86,10.50464661]
[1757886641016,6.55,243.95,243.86,7.11]
[1757886641209,6.55,243.95,243.86,10.50464661]
[1757886642422,105.75,243.95,243.86,10.50464661]
[1757886642622,1.6923672,243.93,243.86,10.50464661]
[1757886642816,1.6923672,243.93,243.86,3.39464661]
[1757886643023,6.61,243.92,243.86,3.39464661]
[1757886644022,6.61,243.92,243.87,3.39464661]
[1757886644322,1.6923672,243.93,243.87,3.39464661]
[1757886644725,6.61,243.92,243.87,3.39464661]
[1757886645423,1.6923672,243.93,243.87,3.39464661]
[1757886645718,1.0845569,243.89,243.86,3.39464661]
[1757886645924,1.0845569,243.89,243.87,10.01464661]
[1757886647326,7.6945569,243.89,243.87,10.01464661]
[1757886648428,1.0845569,243.9,243.87,10.01464661]
[1757886648627,1.0845569,243.9,243.87,3.39464661]
[1757886649026,1.0845569,243.9,243.88,6.62]
[1757886651827,6.61,243.89,243.87,3.39464661]
[1757886652032,6.61,243.89,243.86,3.39464661]
[1757886652422,6.61,243.89,243.86,10.01464661]
[1757886653933,7.6945569,243.87,243.83,10.01464661]
[1757886654333,7.6945569,243.87,243.84,6.82]
[1757886656933,1.0845569,243.87,243.79,6.82]
[1757886657435,7.12,243.88,243.79,6.82]
[1757886657636,1.0845569,243.85,243.79,6.82]
[1757886658636,4.57820896,244.02,243.83,1.0845569]
[1757886658838,1.0845569,244.0,243.89,6.82]
[1757886659133,1.0845569,244.0,243.94,3.41016594]
[1757886659339,1.0845569,244.0,243.93,6.82]
[1757886659340,1.0845569,243.97,243.93,6.82]
[1757886659541,1.0845569,243.94,243.9,6.82]
[1757886659837,7.12,243.93,243.9,6.82]
[1757886660241,7.12,243.93,243.88,10.23016594]
[1757886660540,8.2045569,243.94,243.84,6.82]
[1757886661042,1.0845569,243.91,243.84,6.82]
[1757886661236,8.2045569,243.91,243.84,6.82]
[1757886662741,75.1445569,243.92,243.84,6.82]
[1757886663043,1.0845569,243.92,243.85,6.82]
[1757886663245,103.42,243.93,243.85,6.82]
[1757886663445,103.42,243.95,243.86,3.41016594]
[1757886663646,103.42,243.95,243.87,6.82]
[1757886665345,103.42,243.95,243.88,3.41016594]
[1757886666950,103.42,243.95,243.87,10.23016594]
[1757886667342,1.0845569,243.94,243.87,10.23016594]
[1757886668945,1.0845569,243.94,243.87,6.82]
[1757886669449,103.4,243.93,243.87,6.82]
[1757886670845,7.12,244.03,243.92,6.82]
[1757886671045,7.12,244.03,243.92,10.23016594]
[1757886671240,7.12,244.03,243.92,3.41016594]
[1757886671440,7.12,244.03,243.93,6.82]
[1757886671640,103.38,244.02,243.93,6.82]
[1757886673551,7.12,244.03,243.93,6.82]
[1757886673746,103.36,244.02,243.93,6.82]
[1757886674550,6.47,244.01,243.93,6.82]
[1757886678250,103.34,244.0,243.93,6.82]
[1757886678854,103.32,244.0,243.93,6.82]
[1757886679354,6.47,244.01,243.93,6.82]
[1757886679553,103.32,244.0,243.93,6.82]
[1757886684554,6.47,244.01,243.93,6.82]
[1757886684853,103.3,243.99,243.93,6.82]
[1757886686355,6.47,244.01,243.93,6.82]
[1757886686556,103.28,244.0,243.93,6.82]
[1757886689255,6.47,244.01,243.93,6.82]
[1757886689455,103.26,243.99,243.93,6.82]
[1757886694166,6.47,243.98,243.9,4.49472284]
[1757886694358,6.47,243.98,243.9,1.0845569]
[1757886694659,6.47,243.98,243.91,6.65]
[1757886698967,6.47,243.98,243.89,3.41016594]
[1757886699169,6.47,243.96,243.86,11.14472284]
[1757886699971,7.5545569,243.96,243.86,11.14472284]
[1757886700465,7.5545569,243.96,243.87,3.41016594]
[1757886701271,275.4,244.08,243.94,6.65]
[1757886701272,6.47,244.01,243.94,6.65]
[1757886703872,6.47,244.01,243.94,10.06016594]
[1757886704272,6.47,244.01,243.94,6.65]
[1757886706571,6.65,244.06,243.94,10.06016594]
[1757886706774,6.65,244.06,243.95,6.5]
[1757886706775,103.14,244.05,243.95,6.5]
[1757886707274,103.14,244.05,243.95,9.91016594]
[1757886709173,103.12,244.05,243.96,3.41016594]
[1757886710674,103.12,244.05,243.97,3.41016594]
[1757886711169,6.65,244.06,243.98,3.41016594]
[1757886711375,103.12,244.05,243.98,9.91016594]
[1757886711776,103.12,244.05,243.98,6.5]
[1757886713976,6.65,244.06,243.98,6.5]
[1757886718679,109.71,244.06,243.98,9.91016594]
[1757886718878,6.65,244.06,243.98,9.91016594]
[1757886719473,6.65,244.06,243.98,6.5]
[1757886721779,6.65,244.06,243.98,9.91016594]
[1757886724579,6.65,244.06,243.98,6.5]
[1757886725383,1.6926802,244.05,243.95,3.41016594]
[1757886725578,6.65,244.04,243.95,3.41016594]
[1757886725776,6.65,244.04,243.96,6.86]
[1757886727781,6.65,244.04,243.94,3.41016594]
[1757886727987,6.65,244.04,243.91,10.27016594]
[1757886728393,6.65,244.02,243.91,10.27016594]
[1757886728684,18.58,244.03,243.91,10.27016594]
[1757886728887,6.65,244.0,243.91,10.27016594]
[1757886729087,6.65,244.0,243.91,6.86]
[1757886732384,1.6926802,243.98,243.88,10.28016594]
[1757886732686,6.83,243.97,243.88,6.87]
[1757886733093,6.83,243.97,243.86,3.41016594]
[1757886733389,1.6926802,243.98,243.85,10.28016594]
[1757886733689,22.6,243.97,243.85,10.28016594]
[1757886733890,6.83,243.96,243.85,10.28016594]
[1757886734086,22.6,243.97,243.85,10.28016594]
[1757886734293,6.83,243.96,243.85,10.28016594]
[1757886734596,22.6,243.97,243.85,10.28016594]
[1757886735096,6.83,243.96,243.85,6.87]
[1757886736191,6.83,243.96,243.83,3.41016594]
[1757886737296,6.83,243.96,243.82,10.28016594]
[1757886737492,22.6,243.97,243.82,10.28016594]
[1757886737693,6.83,243.93,243.82,10.28016594]
[1757886737893,1.6926802,243.94,243.82,10.28016594]
[1757886739192,6.83,243.93,243.82,6.87]
[1757886740405,48.27,243.93,243.82,6.87]
[1757886740593,1.6926802,243.9,243.82,6.87]
[1757886740801,6.83,243.89,243.82,6.87]
[1757886740994,6.83,243.89,243.78,18.90385102]
[1757886741305,1.6926802,243.9,243.78,18.90385102]
[1757886741496,6.83,243.89,243.78,6.87]
[1757886742403,6.83,243.85,243.78,6.87]
[1757886743695,1.6926802,243.86,243.72,3.41016594]
[1757886743902,8.5226802,243.78,243.71,6.87]
[1757886744404,8.5226802,243.78,243.63,6.87]
[1757886745507,6.83,243.73,243.63,19.03482944]
[1757886746205,6.83,243.73,243.63,6.87]
[1757886747502,8.5226802,243.7,243.57,6.87]
[1757886747701,6.83,243.7,243.57,6.87]
[1757886747908,1.6926802,243.82,243.57,6.87]
[1757886747909,1.6926802,243.73,243.57,6.87]
[1757886748108,6.83,243.74,243.57,12.47311268]
[1757886748306,6.83,243.74,243.61,6.87]
[1757886755308,8.5226802,243.74,243.61,6.87]
[1757886756712,6.83,243.74,243.61,6.87]
[1757886761721,6.83,243.74,243.55,1.6926802]
[1757886761722,7.02,243.74,243.56,6.47]
[1757886763117,7.02,243.74,243.57,6.47]
[1757886767725,1.08613896,243.73,243.59,1.08613896]
[1757886767927,1.08613896,243.73,243.6,6.47]
[1757886769027,7.02,243.72,243.6,6.47]
[1757886770324,7.02,243.72,243.58,1.08613896]
[1757886770528,7.02,243.69,243.59,6.47]
[1757886777531,6.53,243.66,243.55,6.98]
[1757886778034,6.53,243.63,243.55,6.98]
[1757886778732,1.08613896,243.62,243.52,6.98]
[1757886779332,6.53,243.61,243.52,6.98]
[1757886781237,6.53,243.61,243.52,19.40520675]
[1757886782634,6.53,243.61,243.52,6.98]
[1757886783333,1.08613896,243.59,243.52,6.98]
[1757886783733,1.08613896,243.6,243.52,6.98]
[1757886783941,6.53,243.61,243.52,6.98]
[1757886784141,1.08613896,243.63,243.52,6.98]
[1757886786234,6.53,243.62,243.52,6.98]
[1757886788036,6.53,243.59,243.52,6.98]
[1757886788744,1.08613896,243.57,243.48,6.98]
[1757886789744,6.53,243.56,243.48,6.98]
[1757886790043,1.08613896,243.6,243.48,6.98]
[1757886793347,6.64,243.59,243.48,6.98]
[1757886793547,1.08613896,243.57,243.48,6.98]
[1757886794343,1.08613896,243.54,243.48,6.98]
[1757886799845,7.72613896,243.54,243.48,6.98]
[1757886800350,7.72613896,243.54,243.44,6.5]
[1757886802155,1.08613896,243.51,243.44,6.5]
[1757886804660,6.64,243.54,243.44,6.5]
[1757886804958,1.08613896,243.52,243.44,6.5]
[1757886805159,6.64,243.51,243.44,6.5]
[1757886805962,6.64,243.48,243.41,6.5]
[1757886807263,1.08613896,243.46,243.39,6.5]
[1757886809062,1.08613896,243.43,243.37,6.5]
[1757886809364,6.64,243.46,243.37,6.5]
[1757886809564,7.72613896,243.46,243.37,6.5]
[1757886810969,6.64,243.46,243.37,6.5]
[1757886811164,87.66,243.51,243.37,6.5]
[1757886811468,1.08613896,243.46,243.37,6.5]
[1757886813563,6.64,243.45,243.34,3.41016594]
[1757886813765,6.64,243.42,243.34,6.5]
[1757886814970,1.08613896,243.41,243.34,6.5]
[1757886818274,1.08613896,243.38,243.28,6.5]
[1757886820170,6.64,243.37,243.28,6.5]
[1757886821377,1.08613896,243.38,243.28,6.5]
[1757886822880,6.8,243.41,243.28,6.5]
[1757886823078,1.08613896,243.42,243.28,7.58613896]
[1757886823581,1.08613896,243.39,243.28,6.5]
[1757886825071,6.8,243.38,243.28,6.5]
[1757886832686,4.57820896,243.59,243.36,1.70168381]
[1757886832878,6.8,243.81,243.57,6.79]
[1757886833081,6.8,243.81,243.62,6.79]
[1757886833287,6.8,243.81,243.67,6.79]
[1757886833486,6.8,243.81,243.68,3.71341229]
[1757886833787,6.8,243.81,243.7,6.93]
[1757886834087,6.8,243.81,243.71,3.71341229]
[1757886834286,6.8,243.81,243.72,3.71341229]
[1757886834586,6.8,243.81,243.73,3.71341229]
[1757886834886,6.8,243.81,243.74,3.71341229]
[1757886835086,6.8,243.81,243.75,3.71341229]
[1757886835288,6.8,243.81,243.76,3.71341229]
[1757886835586,6.8,243.81,243.77,3.71341229]
[1757886835784,6.8,243.81,243.78,3.71341229]
[1757886835987,6.8,243.81,243.79,7.37858977]
[1757886836180,6.8,243.81,243.8,7.37858977]
[1757886836485,6.44,243.86,243.8,7.37858977]
[1757886836676,1.70168381,243.87,243.81,7.37858977]
[1757886836677,8.14168381,243.87,243.81,7.37858977]
[1757886836878,1.70168381,243.87,243.82,7.37858977]
[1757886837077,1.70168381,243.87,243.83,3.66517748]
[1757886837280,1.70168381,243.87,243.84,3.66517748]
[1757886837484,6.44,243.86,243.85,3.66517748]
[1757886838186,6.86,243.86,243.67,6.93]
[1757886838488,1.70168381,243.82,243.68,3.69223597]
[1757886838686,6.44,243.81,243.69,3.69223597]
[1757886838987,6.44,243.81,243.7,3.69223597]
[1757886839188,6.44,243.81,243.67,6.93]
[1757886839189,6.44,243.81,243.71,3.69223597]
[1757886839378,6.44,243.81,243.72,3.69223597]
[1757886839682,6.44,243.81,243.73,3.69223597]
[1757886839887,6.44,243.81,243.67,6.93]
[1757886840087,6.44,243.81,243.68,3.71574908]
[1757886840380,6.44,243.81,243.69,3.71574908]
[1757886840580,6.44,243.81,243.7,3.71574908]
[1757886840782,6.44,243.81,243.71,3.71574908]
[1757886840981,6.44,243.81,243.72,3.71574908]
[1757886841183,6.44,243.81,243.67,6.93]
[1757886841386,6.44,243.81,243.68,3.71303487]
[1757886841588,6.44,243.81,243.67,6.93]
[1757886841589,6.44,243.81,243.69,3.71303487]
[1757886841783,6.44,243.81,243.7,3.71303487]
[1757886841979,6.44,243.81,243.71,3.71303487]
[1757886842177,6.44,243.81,243.72,3.71303487]
[1757886842382,6.44,243.81,243.67,6.93]
[1757886842591,6.44,243.81,243.68,3.71134343]
[1757886842888,6.44,243.81,243.69,3.71134343]
[1757886843083,6.44,243.81,243.67,6.93]
[1757886843288,6.44,243.81,243.68,3.71062977]
[1757886847195,6.44,243.81,243.67,6.93]
[1757886848989,12.0,243.8,243.67,6.93]
[1757886849285,6.44,243.78,243.67,6.93]
[1757886850292,6.44,243.78,243.68,3.60847826]
[1757886850492,6.44,243.78,243.69,3.60847826]
[1757886850693,6.44,243.78,243.7,3.60847826]
[1757886850988,6.44,243.78,243.71,3.60847826]
[1757886851187,6.44,243.78,243.72,3.60847826]
[1757886851390,18.77,243.79,243.73,3.60847826]
[1757886851686,6.77,243.77,243.74,3.60847826]
[1757886851892,6.77,243.78,243.75,3.60847826]
[1757886852088,6.77,243.77,243.76,3.60847826]
[1757886858501,6.77,243.77,243.71,6.82]
[1757886858702,6.77,243.77,243.72,10.42405734]
[1757886859005,6.77,243.77,243.73,3.60405734]
[1757886859198,6.77,243.77,243.74,3.60405734]
[1757886859505,6.77,243.77,243.75,3.60405734]
[1757886859803,6.77,243.77,243.76,3.60405734]
[1757886863601,12.0,243.79,243.76,3.60405734]
[1757886863602,18.77,243.79,243.76,3.60405734]
[1757886863904,6.77,243.78,243.77,3.60405734]
[1757886865206,12.0,243.79,243.77,10.42405734]
[1757886865407,18.77,243.79,243.78,3.60405734]
[1757886866502,18.77,243.79,243.78,3.61239009]
[1757886870108,128.09,243.79,243.78,3.61239009]
[1757886875112,128.09,243.79,243.78,7.35513005]
[1757886875502,128.09,243.79,243.78,3.61239009]
[1757886877302,15.69341755,243.79,243.78,3.61239009]
[1757886877501,124.39341755,243.79,243.78,3.61239009]
[1757886878110,124.39341755,243.79,243.72,6.82]
[1757886881415,108.38,243.78,243.72,6.82]
[1757886889721,1.08590925,243.75,243.72,6.82]
[1757886890219,1.08590925,243.75,243.69,3.38826393]
[1757886890420,1.08590925,243.75,243.7,6.47]
[1757886890721,1.08590925,243.75,243.69,3.38826393]
[1757886891222,1.08590925,243.75,243.7,6.47]
[1757886891418,1.08590925,243.76,243.7,6.47]
[1757886891618,1.08590925,243.76,243.61,1.08590925]
[1757886891619,108.82590925,243.76,243.72,6.47]
[1757886891819,108.82590925,243.76,243.71,3.38826393]
[1757886892121,108.82590925,243.76,243.72,6.47]
[1757886892719,108.82590925,243.76,243.71,3.38826393]
[1757886892919,115.66590925,243.76,243.72,6.47]
[1757886893523,6.84,243.75,243.72,6.47]
[1757886893720,108.82590925,243.76,243.7,3.38826393]
[1757886893920,1.08590925,243.73,243.71,6.47]
[1757886894126,1.08590925,243.73,243.69,10.41826393]
[1757886894421,1.08590925,243.73,243.7,7.03]
[1757886895423,6.81,243.72,243.68,3.38826393]
[1757886895722,0.71409517,243.86,243.63,3.38826393]
[1757886895723,6.81,243.69,243.63,3.38826393]
[1757886895915,6.81,243.66,243.62,10.41826393]
[1757886896120,1.08590925,243.63,243.61,3.38826393]
[1757886896320,115.33590925,243.63,243.59,7.03]
[1757886897617,1.08590925,243.6,243.56,7.03]
[1757886897823,1.08590925,243.6,243.55,3.38826393]
[1757886898020,6.81,243.59,243.54,3.38826393]
[1757886898215,6.81,243.59,243.55,7.03]
[1757886899028,1.08590925,243.6,243.54,7.03]
[1757886899222,1.08590925,243.6,243.54,3.38826393]
[1757886899422,53.32,243.62,243.54,7.03]
[1757886899719,6.81,243.61,243.53,3.38826393]
[1757886900025,34.05,243.61,243.53,22.6311921]
[1757886900228,1.08590925,243.62,243.54,7.03]
[1757886900628,1.08590925,243.62,243.54,10.41826393]
[1757886900828,1.08590925,243.62,243.55,7.03]
[1757886903535,1.08590925,243.64,243.55,7.03]
[1757886904035,1.08590925,243.66,243.55,10.41826393]
[1757886904229,6.81,243.67,243.56,7.03]
[1757886904230,1.08590925,243.63,243.56,7.03]
[1757886905135,1.08590925,243.65,243.56,7.03]
[1757886908038,1.08590925,243.62,243.56,7.03]
[1757886908233,1.08590925,243.59,243.53,12.10901502]
[1757886908438,1.08590925,243.59,243.52,7.03]
[1757886916351,1.08590925,243.62,243.52,7.03]
[1757886918645,1.08590925,243.61,243.52,7.03]
[1757886924551,6.81,243.63,243.52,7.03]
[1757886924751,1.08590925,243.6,243.52,7.03]
[1757886925651,6.55,243.59,243.52,7.03]
[1757886931858,1.08590925,243.6,243.52,7.03]
[1757886932862,6.55,243.56,243.48,10.27746277]
[1757886933062,6.55,243.56,243.48,6.9]
[1757886935258,1.08590925,243.57,243.48,6.9]
[1757886940762,6.55,243.56,243.48,6.9]
[1757886941665,6.61,243.53,243.44,6.65]
[1757886942370,1.08590925,243.51,243.44,6.65]
[1757886944370,7.69590925,243.48,243.39,6.65]
[1757886944867,4.57820896,243.6,243.39,87.54639344]
[1757886945075,6.61,243.7,243.59,6.65]
[1757886946173,1.08590925,243.68,243.59,6.65]
[1757886946373,6.61,243.67,243.59,6.65]
[1757886948376,6.61,243.67,243.59,7.73590925]
[1757886949880,6.61,243.67,243.59,6.65]
[1757886959986,23.16,243.7,243.59,6.65]
[1757886960187,30.03,243.7,243.59,6.65]
[1757886960387,30.03,243.7,243.6,1.69756036]
[1757886960388,6.87,243.7,243.6,1.69756036]
[1757886960591,6.87,243.7,243.61,6.81]
[1757886963589,6.87,243.7,243.61,18.95122695]
[1757886967390,4.57820896,243.83,243.61,18.95122695]
[1757886967391,6.87,243.81,243.66,3.37746277]
[1757886967695,6.87,243.81,243.7,6.81]
[1757886976205,6.67,243.85,243.7,6.81]
[1757886976799,6.67,243.85,243.73,1.69756036]
[1757886977005,6.67,243.89,243.74,6.92]
[1757886985508,106.95756036,243.92,243.74,6.92]
[1757886985509,6.67,243.87,243.74,6.92]
[1757886991815,6.67,243.93,243.76,1.69756036]
[1757886992010,4.57820896,244.09,243.78,6.92]
[1757886992011,6.67,243.95,243.78,6.92]
[1757886994410,8.36756036,243.95,243.78,6.92]
[1757886995215,8.36756036,243.95,243.8,6.5]
[1757886995912,6.67,243.95,243.84,1.69756036]
[1757886996116,6.67,243.95,243.85,6.5]
[1757887002815,6.67,243.95,243.85,33.43328045]
[1757887003013,6.67,243.95,243.86,7.06]
[1757887006018,6.96,243.99,243.86,7.06]
[1757887006524,6.96,243.99,243.87,7.06]
[1757887009726,6.96,243.99,243.88,1.08381188]
[1757887009925,6.96,243.99,243.89,7.06]
[1757887012831,6.96,243.99,243.92,7.06]
[1757887016130,1.08381188,243.96,243.91,12.09187544]
[1757887016332,6.58,243.95,243.85,6.49]
[1757887016934,6.58,243.92,243.85,6.49]
[1757887017136,6.58,243.92,243.81,10.95127465]
[1757887017436,6.58,243.92,243.82,3.37746277]
[1757887018232,1.08381188,243.93,243.82,15.75293844]
[1757887018432,107.22653104,244.04,243.81,6.49]
[1757887018433,6.58,243.89,243.81,6.49]
[1757887018630,6.58,243.86,243.77,9.86746277]
[1757887018831,6.58,243.86,243.77,18.93934995]
[1757887019134,6.58,243.86,243.77,6.49]
[1757887022837,6.58,243.86,243.77,18.57037099]
[1757887026937,6.58,243.92,243.83,6.49]
[1757887028543,6.58,243.92,243.85,1.08381188]
[1757887028742,6.58,243.92,243.86,6.49]
[1757887029244,6.58,243.92,243.83,1.08381188]
[1757887029737,107.22653104,244.04,243.83,1.08381188]
[1757887029937,6.58,244.03,243.94,6.49]
[1757887030144,1.08381188,244.11,243.99,6.49]
[1757887030145,6.58,244.1,243.99,6.49]
[1757887030735,6.58,244.1,243.99,7.57381188]
[1757887031034,6.58,244.07,243.95,1.08381188]
[1757887031342,6.58,244.07,243.94,1.08381188]
[1757887031946,1.08381188,244.03,243.92,6.49]
[1757887032147,6.53,244.02,243.92,6.49]
[1757887034846,1.08381188,244.0,243.89,3.37746277]
[1757887035149,6.53,243.99,243.88,7.95381188]
[1757887036647,41.82,244.04,243.84,6.87]
[1757887036648,6.53,243.93,243.84,6.87]
[1757887037052,7.61381188,243.93,243.84,6.87]
[1757887037559,6.53,243.93,243.84,6.87]
[1757887037748,7.61381188,243.93,243.82,3.37746277]
[1757887037953,6.53,243.89,243.78,1.08381188]
[1757887039055,6.53,243.86,243.76,1.08381188]
[1757887040752,6.53,243.86,243.73,10.24746277]
[1757887041059,6.53,243.86,243.75,1.08381188]
[1757887041853,6.53,243.83,243.72,1.08381188]
[1757887043961,6.53,243.83,243.75,1.08381188]
[1757887044157,6.53,243.83,243.78,7.95381188]
[1757887044862,6.53,243.83,243.79,6.87]
[1757887046261,6.53,243.87,243.79,6.87]
[1757887053170,7.61381188,243.87,243.79,6.87]
[1757887054772,7.61381188,243.87,243.8,3.19344507]
[1757887054974,7.61381188,243.87,243.81,3.19344507]
[1757887055164,7.61381188,243.87,243.82,3.19363252]
[1757887055369,6.53,243.86,243.79,6.87]
[1757887055570,6.53,243.86,243.8,3.19369842]
[1757887055869,6.53,243.86,243.81,3.19369842]
[1757887056071,1.08381188,243.87,243.82,3.19369842]
[1757887056271,6.53,243.86,243.79,6.87]
[1757887056475,6.53,243.86,243.8,3.19399297]
[1757887056670,7.61381188,243.87,243.81,3.19399297]
[1757887056973,7.61381188,243.87,243.79,6.87]
[1757887057175,7.61381188,243.87,243.8,3.19409983]
[1757887057375,7.61381188,243.87,243.81,3.19409983]
[1757887057576,7.61381188,243.87,243.79,6.87]
[1757887057777,7.61381188,243.87,243.8,3.19442062]
[1757887057974,7.61381188,243.87,243.81,3.19442062]
[1757887058176,7.61381188,243.87,243.79,6.87]
[1757887058376,7.61381188,243.87,243.8,3.19492695]
[1757887058576,7.61381188,243.87,243.81,3.19492695]
[1757887058877,1.08381188,243.87,243.82,3.19492695]
[1757887059079,6.53,243.86,243.79,6.87]
[1757887059377,6.53,243.86,243.8,3.19492695]
[1757887059575,1.08381188,243.87,243.81,3.19492695]
[1757887059769,1.08381188,243.87,243.82,3.19492695]
[1757887059975,1.08381188,243.84,243.75,10.24746277]
[1757887060171,1.08381188,243.84,243.73,1.08381188]
[1757887060172,6.53,243.83,243.76,3.19627776]
[1757887060371,6.53,243.83,243.77,3.19627776]
[1757887060572,6.53,243.83,243.78,3.19627776]
[1757887060877,6.53,243.83,243.72,3.37746277]
[1757887061077,6.53,243.83,243.73,3.1974698]
[1757887061280,1.08381188,243.81,243.74,3.1974698]
[1757887061470,1.08381188,243.81,243.75,3.1974698]
[1757887061669,1.08381188,243.81,243.76,3.1974698]